fUSD/lending_fUSD_20241016
["ID","MTS","AMOUNT","RATE_DAILY","PERIOD"]
[340332824,1729054233108,-705.63394503,0.00011,2]
[340332825,1729054233119,-128179.071549,0.00011,2]
[340332826,1729054233129,-3301.82961264,0.00011,2]
[340332827,1729054233140,-573.43331423,0.00011,2]
[340332828,1729054233156,-922.8622943,0.00011,2]
[340332830,1729054238356,-307.25000024,0.00011,2]
[340332831,1729054238368,-10919.1589561,0.00011,2]
[340332832,1729054238467,-470.70076732,0.00011,2]
[340332833,1729054238523,-293.41970148,0.00011,2]
[340332834,1729054238685,-480514.88130547,0.00011,2]
[340332835,1729054238742,-250.0,0.00011,2]
[340332836,1729054238756,-1185.34288774,0.00011,2]
[340332837,1729054238767,-2082.44359574,0.00011,2]
[340332838,1729054238780,-1021.79203521,0.00011,2]
[340332839,1729054238791,-719.044799,0.00011,2]
[340332840,1729054238803,-12001.67802,0.00011,2]
[340332841,1729054238815,-684.62386886,0.00011,2]
[340332849,1729054240406,-500.164392,0.00011,2]
[340332850,1729054240623,-377.699985,0.00011,2]
[340332851,1729054240634,-523.82867857,0.00011,2]
[340332852,1729054240681,-400.07483383,0.00011,2]
[340332853,1729054240693,-745.83403878,0.00011,2]
[340332854,1729054240704,-5464.19112739,0.00011,2]
[340333007,1729054243393,-500.0,0.00010973,2]
[340333008,1729054243403,-128.71707547,0.00011,2]
[340333009,1729054243414,-3939.85691892,0.00011,2]
[340333010,1729054243458,-3062.1744444,0.00011,2]
[340333011,1729054243469,-4470.16,0.00011,2]
[340333012,1729054243480,-3004.950001,0.00011,2]
[340333013,1729054243514,-1309.9999992,0.00011,2]
[340333014,1729054243525,-7314.75,0.00011,2]
[340333015,1729054243537,-643.1254108,0.00011,2]
[340333016,1729054243622,-4443.98148074,0.00011,2]
[340333017,1729054243633,-6973.42880457,0.00011,2]
[340333018,1729054243685,-1415.96895621,0.00011,2]
[340333019,1729054243733,-500.0,0.00010999,2]
[340333020,1729054243868,-151.66255429,0.00011,2]
[340333021,1729054243922,-365.65848266,0.00011,2]
[340333024,1729054246402,-601.35072724,0.00011,2]
[340333025,1729054246507,-730.78318708,0.00011,2]
[340333026,1729054246570,-7125.0,0.00011,2]
[340333028,1729054379502,455.82,9.579e-05,2]
[340333029,1729054420533,550.0,0.0001,2]
[340333031,1729054843933,163.94,0.00010207,2]
[340333032,1729054887778,620.47,8.344e-05,2]
[340333036,1729054955656,19272.98,0.0001016,2]
[340333037,1729054991045,394.0,0.00027,60]
[340333039,1729055018979,5680.27,0.00010156,2]
[340333040,1729055030339,208.44,0.00010224,2]
[340333041,1729055079329,500.0,0.00010222,2]
[340333042,1729055090954,250.0,0.00010222,2]
[340333043,1729055108766,2000.0,0.000102,2]
[340333044,1729055121526,2000.0,0.00027,60]
[340333045,1729055133934,2000.0,0.00027,60]
[340333046,1729055136430,217.83452025,9.888e-05,2]
[340333047,1729055136745,217.83452025,9.899e-05,2]
[340333048,1729055137069,217.83452025,9.91e-05,2]
[340333049,1729055137380,217.83452025,9.921e-05,2]
[340333050,1729055137687,217.83452025,9.932e-05,2]
[340333051,1729055137989,217.83452025,9.943e-05,2]
[340333052,1729055138308,217.83452025,9.954e-05,2]
[340333053,1729055138594,217.83452025,9.965e-05,2]
[340333054,1729055138937,217.83452025,9.976e-05,2]
[340333055,1729055139255,217.83452025,9.988e-05,2]
[340333056,1729055139565,217.83452025,9.999e-05,2]
[340333057,1729055139894,217.83452025,0.0001001,2]
[340333058,1729055140226,217.83452025,0.00010021,2]
[340333059,1729055140536,217.83452025,0.00010032,2]
[340333060,1729055140832,217.83452025,0.00010043,2]
[340333061,1729055141150,217.83452025,0.00010054,2]
[340333062,1729055141466,217.83452025,0.00010065,2]
[340333063,1729055141774,217.83452025,0.00010076,2]
[340333064,1729055142091,217.83452025,0.00010087,2]
[340333065,1729055142396,217.83452025,0.00010099,2]
[340333066,1729055142707,217.83452025,0.0001011,2]
[340333067,1729055143016,217.83452025,0.00010121,2]
[340333068,1729055143442,217.83452025,0.00010132,2]
[340333069,1729055143623,217.83452025,0.00010143,2]
[340333070,1729055143925,217.83452025,0.00010154,2]
[340333071,1729055144255,217.83452025,0.00010165,2]
[340333072,1729055145063,217.83452025,0.00010176,2]
[340333073,1729055145366,217.83452025,0.00010187,2]
[340333074,1729055145696,217.83452025,0.00010198,2]
[340333075,1729055146016,217.83452025,0.00010209,2]
[340333076,1729055146320,217.83452025,0.00010221,2]
[340333077,1729055146615,217.83452025,0.00010232,2]
[340333078,1729055146913,217.83452025,0.00010243,2]
[340333079,1729055160467,200.0,9.628e-05,2]
[340333080,1729055220884,591.0,0.00027,60]
[340333081,1729055258122,157.39,9.711e-05,2]
[340333082,1729055280396,151.09,9.711e-05,2]
[340333083,1729055288847,170.95,7.763e-05,2]
[340333084,1729055378521,925.33,8.219e-05,2]
[340333085,1729055380223,250.0,9.708e-05,2]
[340333086,1729055380474,1852.42,9.708e-05,2]
[340333087,1729055412260,163.59294038,0.00010165,2]
[340333093,1729055431512,-217.83452025,0.00010254,2]
[340333094,1729055431523,-62.73215407,0.00010265,2]
[340333095,1729055431571,-155.10236618,0.00010265,2]
[340333096,1729055431580,-217.83452025,0.00010276,2]
[340333097,1729055431589,-106.22311357,0.00010287,2]
[340333098,1729055431630,-111.61140668,0.00010287,2]
[340333099,1729055431640,-217.83452025,0.00010298,2]
[340333100,1729055431649,-217.83452025,0.00010309,2]
[340333101,1729055431660,-217.83452025,0.0001032,2]
[340333102,1729055431669,-217.83452025,0.00010332,2]
[340333103,1729055431679,-217.83452025,0.00010343,2]
[340333104,1729055431690,-217.83452025,0.00010354,2]
[340333105,1729055431701,-217.83452025,0.00010365,2]
[340333106,1729055431712,-217.83452025,0.00010376,2]
[340333107,1729055431721,-217.83452025,0.00010387,2]
[340333108,1729055431732,-217.83452025,0.00010398,2]
[340333109,1729055431742,-217.83452025,0.00010409,2]
[340333110,1729055431751,-217.83452025,0.0001042,2]
[340333111,1729055431760,-217.83452025,0.00010431,2]
[340333112,1729055431769,-217.83452025,0.00010443,2]
[340333113,1729055431779,-217.83452025,0.00010454,2]
[340333114,1729055431788,-925.33,0.0001046,2]
[340333115,1729055431797,-217.83452025,0.00010465,2]
[340333116,1729055431807,-217.83452025,0.00010476,2]
[340333117,1729055431817,-217.83452025,0.00010487,2]
[340333118,1729055431827,-217.83452025,0.00010498,2]
[340333119,1729055431836,-781.8515,0.00010508,2]
[340333120,1729055431846,-300.0,0.00010508,2]
[340333121,1729055431855,-150.0,0.00010509,2]
[340333122,1729055431865,-217.83452025,0.00010509,2]
[340333123,1729055431875,-217.83452025,0.0001052,2]
[340333124,1729055431885,-217.83452025,0.00010531,2]
[340333125,1729055431895,-217.83452025,0.00010542,2]
[340333126,1729055431904,-217.83452025,0.00010554,2]
[340333127,1729055431914,-217.83452025,0.00010565,2]
[340333128,1729055431924,-217.83452025,0.00010576,2]
[340333129,1729055431936,-217.83452025,0.00010587,2]
[340333130,1729055431947,-217.83452025,0.00010598,2]
[340333131,1729055431957,-152.21706398,0.000106,2]
[340333132,1729055431969,-1847.78293602,0.000106,2]
[340333133,1729055431979,-217.83452025,0.00010609,2]
[340333134,1729055431988,-217.83452025,0.0001062,2]
[340333135,1729055431998,-217.83452025,0.00010631,2]
[340333136,1729055432008,-217.83452025,0.00010642,2]
[340333137,1729055432017,-217.83452025,0.00010653,2]
[340333138,1729055432027,-217.83452025,0.00010664,2]
[340333139,1729055432036,-217.83452025,0.00010676,2]
[340333140,1729055432046,-217.83452025,0.00010687,2]
[340333141,1729055432055,-217.83452025,0.00010698,2]
[340333142,1729055432064,-217.83452025,0.00010709,2]
[340333143,1729055432074,-217.83452025,0.0001072,2]
[340333144,1729055432083,-217.83452025,0.00010731,2]
[340333145,1729055432092,-217.83452025,0.00010742,2]
[340333146,1729055432102,-217.83452025,0.00010753,2]
[340333147,1729055432111,-217.83452025,0.00010764,2]
[340333148,1729055432120,-217.83452025,0.00010775,2]
[340333149,1729055432129,-217.83452025,0.00010787,2]
[340333150,1729055432138,-217.83452025,0.00010798,2]
[340333151,1729055432147,-192.72062254,0.000108,2]
[340333152,1729055432162,-231.44937746,0.000108,2]
[340333153,1729055432171,-165.03079426,0.000108,2]
[340333154,1729055432182,-259.13920574,0.000108,2]
[340333155,1729055432192,-827.81,0.000108,2]
[340333156,1729055432201,-755.88,0.000108,2]
[340333157,1729055432210,-424.17,0.000108,2]
[340333158,1729055432219,-424.17,0.000108,2]
[340333159,1729055432228,-755.88,0.000108,2]
[340333160,1729055432238,-163.59294037,0.000108,2]
[340333161,1729055432247,-217.83452025,0.00010809,2]
[340333162,1729055432256,-217.83452025,0.0001082,2]
[340333163,1729055432265,-217.83452025,0.00010831,2]
[340333164,1729055432274,-217.83452025,0.00010842,2]
[340333165,1729055432284,-217.83452025,0.00010853,2]
[340333166,1729055432293,-217.83452025,0.00010864,2]
[340333167,1729055432302,-217.83452025,0.00010875,2]
[340333168,1729055432311,-217.83452025,0.00010886,2]
[340333169,1729055432320,-20069.90762975,0.0001089,2]
[340333170,1729055432329,-217.83452025,0.00010898,2]
[340333171,1729055432338,-1037.8755,0.000109,2]
[340333172,1729055432347,-173.39192528,0.000109,2]
[340333173,1729055432356,-5884.7063,0.000109,2]
[340333174,1729055432366,-1074.3724,0.000109,2]
[340333175,1729055432375,-1000.0,0.000109,2]
[340333176,1729055432384,-11903.1631,0.000109,2]
[340333177,1729055432393,-851.62,0.000109,2]
[340333178,1729055432403,-1000.0,0.000109,2]
[340333179,1729055432412,-9847.17972918,0.000109,2]
[340333180,1729055432426,-828.9526894,0.000109,2]
[340333181,1729055432436,-1571.2489,0.000109,2]
[340333182,1729055432445,-169.16770408,0.000109,2]
[340333183,1729055432455,-13270.876,0.00010907,2]
[340333184,1729055432464,-217.83452025,0.00010909,2]
[340333185,1729055432473,-217.83452025,0.0001092,2]
[340333186,1729055432482,-1000.0,0.00010928,2]
[340333187,1729055432491,-217.83452025,0.00010931,2]
[340333188,1729055432500,-217.83452025,0.00010942,2]
[340333189,1729055432509,-213.92,0.00010943,2]
[340333190,1729055432518,-217.83452025,0.00010953,2]
[340333191,1729055432527,-159.14,0.00010959,2]
[340333192,1729055432536,-160.46,0.00010959,2]
[340333193,1729055432545,-198.8,0.00010959,2]
[340333194,1729055432554,-250.0,0.00010959,2]
[340333195,1729055432563,-217.83452025,0.00010964,2]
[340333196,1729055432572,-500.0,0.00010973,2]
[340333197,1729055432581,-217.83452025,0.00010975,2]
[340333198,1729055432590,-217.83452025,0.00010986,2]
[340333199,1729055432600,-2615.116358,0.00010995,2]
[340333200,1729055432609,-781.29442395,0.00010999,2]
[340333201,1729055432621,-2061.70557605,0.00010999,2]
[340333202,1729055432630,-499.99,0.00010999,2]
[340333203,1729055432639,-500.0,0.00010999,2]
[340333204,1729055432648,-500.0,0.00010999,2]
[340333205,1729055432657,-500.0,0.00010999,2]
[340333206,1729055432666,-532.11438887,0.00010999,2]
[340333207,1729055432675,-500.0,0.00010999,2]
[340333208,1729055432684,-423.67809069,0.00010999,2]
[340333209,1729055432693,-593.98508703,0.00010999,2]
[340333210,1729055432702,-500.0,0.00010999,2]
[340333211,1729055432711,-328.61,0.00010999,2]
[340333212,1729055432720,-570.7396664,0.00010999,2]
[340333213,1729055432730,-553.14929721,0.00010999,2]
[340333214,1729055432739,-493.53347871,0.00010999,2]
[340333215,1729055432748,-500.0,0.00010999,2]
[340333216,1729055432757,-500.0,0.00010999,2]
[340333217,1729055432766,-500.0,0.00010999,2]
[340333218,1729055432775,-601.0,0.00010999,2]
[340333219,1729055432784,-521.87901698,0.00010999,2]
[340333220,1729055432793,-500.0,0.00010999,2]
[340333221,1729055432802,-500.0,0.00010999,2]
[340333222,1729055432811,-520.67703949,0.00010999,2]
[340333223,1729055432820,-500.0,0.00010999,2]
[340333224,1729055432829,-500.0,0.00010999,2]
[340333225,1729055432838,-500.0,0.00010999,2]
[340333226,1729055432847,-500.0,0.00010999,2]
[340333227,1729055432856,-500.0,0.00010999,2]
[340333228,1729055432865,-500.0,0.00010999,2]
[340333229,1729055432874,-500.0,0.00010999,2]
[340333230,1729055432883,-500.0,0.00010999,2]
[340333231,1729055432892,-520.95719942,0.00010999,2]
[340333232,1729055432901,-500.0,0.00010999,2]
[340333233,1729055432910,-500.0,0.00010999,2]
[340333234,1729055432919,-500.0,0.00010999,2]
[340333235,1729055432929,-500.0,0.00010999,2]
[340333236,1729055432940,-500.0,0.00010999,2]
[340333237,1729055432950,-500.0,0.00010999,2]
[340333238,1729055432960,-165.64,0.00010999,2]
[340333239,1729055432969,-45348.49742114,0.00011,2]
[340333240,1729055432982,-412.95315396,0.00011,2]
[340333241,1729055432994,-737.63555267,0.00011,2]
[340333242,1729055433005,-3696.00527071,0.00011,2]
[340333244,1729055437574,-25519.93968431,0.00011,2]
[340333245,1729055437585,-31459.36390596,0.00011,2]
[340333246,1729055437688,-1175.4277985,0.00011,2]
[340333247,1729055437756,-1223.06036169,0.00011,2]
[340333248,1729055437767,-267.86768875,0.00011,2]
[340333249,1729055437813,-847.64886566,0.00011,2]
[340333310,1729055439749,-46139.04057756,0.00011,2]
[340333311,1729055439761,-3441.38815,0.00011,2]
[340333312,1729055439773,-671.0,0.00011,2]
[340333313,1729055439807,-13085.10000002,0.00011,2]
[340333314,1729055439818,-528.55,0.00011,2]
[340333315,1729055439864,-720.36958336,0.00011,2]
[340333386,1729055442586,-293.44999981,0.00011,2]
[340333387,1729055442695,-9561.74750296,0.00011,2]
[340333388,1729055442710,-10582.19560648,0.00011,2]
[340333389,1729055442721,-271.16233291,0.00011,2]
[340333390,1729055442731,-1835.65508445,0.00011,2]
[340333391,1729055442812,-2500.0,0.00011,2]
[340333392,1729055442868,-946.0,0.00011,2]
[340333396,1729055445515,-755.88,0.000108,2]
[340333397,1729055445524,-130085.39038183,0.00011,2]
[340333398,1729055445623,-1552.725,0.00011,2]
[340333399,1729055445636,-294.4644,0.00011,2]
[340333400,1729055445679,-1690.95800616,0.00011,2]
[340333401,1729055445690,-7368.6299918,0.00011,2]
[340333402,1729055445736,-272.36691632,0.00011,2]
[340333403,1729055445750,-1564.72853399,0.00011,2]
[340333404,1729055445760,-3205.28869851,0.00011,2]
[340333405,1729055445770,-770.4272415,0.00011,2]
[340333406,1729055446211,-530.77139809,0.00011,2]
[340333407,1729055567913,174.46,9.902e-05,2]
[340333408,1729055577278,500.0,9.902e-05,2]
[340333409,1729055592801,250.0,9.902e-05,2]
[340333410,1729055804990,616.7,0.00027,60]
[340333411,1729055826816,1000.0,9.881e-05,2]
[340333412,1729055831746,500.0,0.0001,2]
[340333413,1729055832504,506.45,0.0001,2]
[340333414,1729055892972,891.94,8.219e-05,2]
[340333415,1729056025002,17052.79342443,9.879e-05,2]
[340333416,1729056025029,6847.20657557,9.879e-05,2]
[340333418,1729056158833,250.0,9.87e-05,2]
[340333419,1729056198642,174.46,9.867e-05,2]
[340333423,1729056228305,550.0,0.0001,2]
[340333427,1729056282719,200.0,9.95e-05,2]
[340333431,1729056328994,963.11964229,0.000101,2]
[340333432,1729056348924,200.0,9.861e-05,2]
[340333433,1729056354097,1707.27060045,6.94e-05,2]
[340333434,1729056410023,847.34,8.219e-05,2]
[340333435,1729056476336,1648.51984069,0.0001,2]
[340333436,1729056510610,163.94,9.865e-05,2]
[340333438,1729056558162,23900.0,9.869e-05,2]
[340333441,1729056627638,152.03,9.871e-05,2]
[340333447,1729056631697,-847.34,0.00010469,2]
[340333448,1729056631707,-575.60448515,0.00010625,2]
[340333449,1729056631757,-461.91570804,0.00010625,2]
[340333450,1729056631766,-150.0,0.00010725,2]
[340333451,1729056631776,-1500.0,0.00010727,2]
[340333452,1729056631785,-150.0,0.00010729,2]
[340333453,1729056631795,-150.0,0.0001073,2]
[340333454,1729056631805,-150.0,0.00010736,2]
[340333455,1729056631815,-150.0,0.00010737,2]
[340333456,1729056631826,-150.0,0.00010737,2]
[340333457,1729056631835,-150.0,0.0001074,2]
[340333458,1729056631845,-300.0,0.0001074,2]
[340333459,1729056631855,-150.0,0.00010741,2]
[340333460,1729056631864,-1512.68,0.00010741,2]
[340333461,1729056631873,-499.99,0.00010741,2]
[340333462,1729056631882,-326.62,0.00010741,2]
[340333463,1729056631891,-9999.99,0.00010741,2]
[340333464,1729056631901,-999.99,0.00010741,2]
[340333465,1729056631910,-106.88699259,0.00010741,2]
[340333466,1729056631921,-44.10300741,0.00010741,2]
[340333467,1729056631931,-6393.24,0.00010741,2]
[340333468,1729056631940,-150.0,0.00010743,2]
[340333469,1729056631949,-150.0,0.00010743,2]
[340333470,1729056631958,-150.0,0.00010753,2]
[340333471,1729056631967,-570.37,0.00010755,2]
[340333472,1729056631977,-150.0,0.00010761,2]
[340333473,1729056631986,-150.0,0.00010763,2]
[340333474,1729056631995,-150.0,0.00010764,2]
[340333475,1729056632006,-150.0,0.00010765,2]
[340333476,1729056632015,-150.0,0.0001077,2]
[340333477,1729056632025,-150.0,0.00010773,2]
[340333478,1729056632034,-150.0,0.00010778,2]
[340333479,1729056632045,-150.0,0.00010779,2]
[340333480,1729056632056,-150.0,0.0001078,2]
[340333481,1729056632066,-150.0,0.00010781,2]
[340333482,1729056632075,-150.0,0.00010782,2]
[340333483,1729056632084,-150.0,0.00010783,2]
[340333484,1729056632094,-150.0,0.00010788,2]
[340333485,1729056632104,-150.0,0.00010793,2]
[340333486,1729056632115,-150.0,0.00010794,2]
[340333487,1729056632124,-150.0,0.00010796,2]
[340333488,1729056632135,-150.0,0.00010802,2]
[340333489,1729056632144,-150.0,0.00010805,2]
[340333490,1729056632154,-150.0,0.00010815,2]
[340333491,1729056632164,-150.0,0.00010816,2]
[340333492,1729056632173,-150.0,0.00010821,2]
[340333493,1729056632182,-150.0,0.00010822,2]
[340333494,1729056632193,-150.0,0.00010824,2]
[340333495,1729056632203,-150.0,0.00010824,2]
[340333496,1729056632213,-150.0,0.00010831,2]
[340333497,1729056632223,-150.0,0.00010832,2]
[340333498,1729056632232,-150.0,0.00010836,2]
[340333499,1729056632241,-1494.8519098,0.00010845,2]
[340333500,1729056632252,-150.0,0.00010848,2]
[340333501,1729056632265,-150.0,0.00010849,2]
[340333502,1729056632275,-150.0,0.00010854,2]
[340333503,1729056632284,-150.0,0.00010861,2]
[340333504,1729056632294,-150.0,0.00010863,2]
[340333505,1729056632304,-297.61884804,0.00010869,2]
[340333506,1729056632313,-1500.0,0.00010871,2]
[340333507,1729056632324,-150.0,0.00010879,2]
[340333508,1729056632333,-150.0,0.00010884,2]
[340333509,1729056632342,-150.54012692,0.00010894,2]
[340333510,1729056632353,-150.0,0.00010897,2]
[340333511,1729056632362,-9692.2171,0.000109,2]
[340333512,1729056632372,-1101.004,0.000109,2]
[340333513,1729056632383,-65.83518362,0.000109,2]
[340333514,1729056632395,-308.13481638,0.000109,2]
[340333515,1729056632405,-3377.90739097,0.000109,2]
[340333516,1729056632417,-1545.8999954,0.000109,2]
[340333517,1729056632429,-445.94337722,0.000109,2]
[340333518,1729056632440,-563.83252652,0.000109,2]
[340333519,1729056632449,-18.94334532,0.000109,2]
[340333520,1729056632460,-2481.05665468,0.000109,2]
[340333521,1729056632470,-150.0,0.00010905,2]
[340333522,1729056632479,-150.0,0.00010909,2]
[340333523,1729056632489,-150.0,0.00010911,2]
[340333524,1729056632498,-150.0,0.00010914,2]
[340333525,1729056632509,-246.633,0.0001092,2]
[340333526,1729056632519,-150.0,0.0001092,2]
[340333527,1729056632529,-150.0,0.00010927,2]
[340333528,1729056632702,-150.0,0.00010928,2]
[340333529,1729056632713,-150.0,0.00010932,2]
[340333530,1729056632724,-150.0,0.00010933,2]
[340333531,1729056632733,-150.0,0.00010934,2]
[340333532,1729056632743,-1000.0,0.00010945,2]
[340333533,1729056632752,-1000.0,0.00010945,2]
[340333534,1729056632761,-1135.3119,0.00010945,2]
[340333535,1729056632771,-150.0,0.00010946,2]
[340333536,1729056632781,-159.89,0.00010959,2]
[340333537,1729056632791,-160.51,0.00010959,2]
[340333538,1729056632801,-270.55,0.00010959,2]
[340333539,1729056632810,-250.0,0.00010959,2]
[340333540,1729056632820,-323.43,0.00010959,2]
[340333541,1729056632829,-413.62844532,0.00010959,2]
[340333543,1729056635044,-426.00155468,0.00010959,2]
[340333544,1729056635055,-150.0,0.0001096,2]
[340333545,1729056635064,-300.0,0.0001096,2]
[340333546,1729056635074,-150.0,0.00010971,2]
[340333547,1729056635083,-642.28649013,0.00010973,2]
[340333548,1729056635092,-500.0,0.00010973,2]
[340333549,1729056635101,-376.47217343,0.00010973,2]
[340333551,1729056635111,-150.0,0.00010975,2]
[340333553,1729056635120,-150.0,0.00010976,2]
[340333555,1729056635130,-150.0,0.0001098,2]
[340333557,1729056635139,-516.636,0.00010983,2]
[340333559,1729056635148,-3367.35,0.00010983,2]
[340333561,1729056635157,-11476.625,0.00010983,2]
[340333562,1729056635166,-150.0,0.00010983,2]
[340333564,1729056635177,-5883.0,0.00010983,2]
[340333566,1729056635186,-555.573,0.00010983,2]
[340333568,1729056635195,-150.225,0.00010983,2]
[340333570,1729056635204,-150.0,0.00010986,2]
[340333572,1729056635213,-150.0,0.0001099,2]
[340333574,1729056635223,-150.0,0.00010995,2]
[340333576,1729056635232,-781.13492649,0.00010998,2]
[340333618,1729056637737,-555.932,0.00010983,2]
[340333619,1729056637746,-1752.18049719,0.00010998,2]
[340333620,1729056637755,-226.30232009,0.00010999,2]
[340333621,1729056637764,-253.94429099,0.00010999,2]
[340333622,1729056637773,-500.0,0.00010999,2]
[340333623,1729056637783,-518.68696282,0.00010999,2]
[340333624,1729056637792,-203.38260948,0.00010999,2]
[340333625,1729056637801,-500.0,0.00010999,2]
[340333626,1729056637810,-524.27775076,0.00010999,2]
[340333627,1729056637819,-509.58204312,0.00010999,2]
[340333628,1729056637828,-500.0,0.00010999,2]
[340333629,1729056637837,-500.0,0.00010999,2]
[340333630,1729056637846,-500.0,0.00010999,2]
[340333631,1729056637855,-500.0,0.00010999,2]
[340333632,1729056637865,-588.48180036,0.00010999,2]
[340333633,1729056637874,-500.0,0.00010999,2]
[340333634,1729056637883,-566.44319997,0.00010999,2]
[340333635,1729056637891,-500.0,0.00010999,2]
[340333636,1729056637901,-518.28212742,0.00010999,2]
[340333637,1729056637910,-500.0,0.00010999,2]
[340333638,1729056637919,-500.0,0.00010999,2]
[340333639,1729056637928,-500.0,0.00010999,2]
[340333640,1729056637937,-527.24929777,0.00010999,2]
[340333641,1729056637947,-564.29761668,0.00010999,2]
[340333642,1729056637956,-532.32946225,0.00010999,2]
[340333643,1729056637965,-500.0,0.00010999,2]
[340333644,1729056637974,-500.0,0.00010999,2]
[340333645,1729056637983,-500.0,0.00010999,2]
[340333646,1729056637993,-500.0,0.00010999,2]
[340333647,1729056638002,-568.0,0.00011,2]
[340333648,1729056638012,-248.76059554,0.00011,2]
[340333649,1729056638021,-3969.67470328,0.00011,2]
[340333650,1729056638032,-7124.06785984,0.00011,2]
[340333651,1729056638043,-1101.8235462,0.00011,2]
[340333652,1729056638054,-15762.61016434,0.00011,2]
[340333653,1729056638133,-38901.80947826,0.00011,2]
[340333673,1729056639694,-1452.25846956,0.00011,2]
[340333674,1729056639865,-500.0,0.00010999,2]
[340333675,1729056639874,-500.0,0.00010999,2]
[340333676,1729056639882,-390.74255036,0.00011,2]
[340333677,1729056639893,-82272.58433147,0.00011,2]
[340333678,1729056639981,-488.2289892,0.00010999,2]
[340333679,1729056639990,-7366.47101082,0.00011,2]
[340333680,1729056640001,-9096.64373114,0.00011,2]
[340333681,1729056640013,-8947.21879473,0.00011,2]
[340333682,1729056640024,-8943.78386462,0.00011,2]
[340333683,1729056640035,-9077.54866152,0.00011,2]
[340333684,1729056640046,-8943.84023489,0.00011,2]
[340333685,1729056640064,-500.0,0.00010999,2]
[340333686,1729056640073,-217210.0,0.00011,2]
[340333697,1729056642747,-570.0,0.00011,2]
[340333698,1729056642757,-5211.58274695,0.00011,2]
[340333699,1729056642805,-2518.61070492,0.00011,2]
[340333700,1729056643030,-2151.55353911,0.00011,2]
[340333701,1729056643041,-4160.4192859,0.00011,2]
[340333702,1729056643087,-301.25385499,0.00011,2]
[340333762,1729056645797,-1083.0,0.00010983,2]
[340333763,1729056645806,-286040.57755916,0.00011,2]
[340333764,1729056645814,-1712283.00287047,0.00011,2]
[340333765,1729056645824,-19674.1530052,0.00011,2]
[340333766,1729056645835,-6222.99803238,0.00011,2]
[340333767,1729056645872,-7260.74253815,0.00011,2]
[340333768,1729056646015,-2860.81821591,0.00011,2]
[340333769,1729056646026,-356.34,0.00011,2]
[340333770,1729056646038,-341.44,0.00011,2]
[340333816,1729056903514,168.48,0.00010178,2]
[340333819,1729056929207,798.4,8.219e-05,2]
[340333821,1729056951552,366.45,0.00010101,2]
[340333822,1729056958780,523.51,0.00010101,2]
[340333823,1729056958977,523.51,0.00010104,2]
[340333824,1729056959233,523.51,0.00010106,2]
[340333825,1729056959440,523.51,0.00010109,2]
[340333826,1729056959645,523.51,0.00010112,2]
[340333827,1729056959848,523.51,0.00010114,2]
[340333828,1729056960056,523.51,0.00010117,2]
[340333829,1729056960283,523.51,0.0001012,2]
[340333830,1729056960681,523.51,0.00010122,2]
[340333831,1729056960922,523.51,0.00010125,2]
[340333832,1729056961141,523.51,0.00010128,2]
[340333833,1729056961338,523.51,0.0001013,2]
[340333834,1729056961545,523.51,0.00010133,2]
[340333835,1729056961746,523.51,0.00010136,2]
[340333836,1729056961966,523.51,0.00010138,2]
[340333837,1729056962172,523.51,0.00010141,2]
[340333838,1729056962372,523.51,0.00010144,2]
[340333839,1729056962772,523.51,0.00010146,2]